[Event "Netanya Open 2019"]
[Site "Netanya"]
[Date "2019.06.30"]
[Round "7.65"]
[White "Usha Margolin, Daniel"]
[Black "Lazebnikov, Efim"]
[Result "0-1"]
[WhiteElo "1437"]
[BlackElo "1444"]
[PlyCount "90"]
[EventDate "2019.06.23"]
[EventType "swiss"]
[EventRounds "9"]
[EventCountry "ISR"]
[TimeControl "40/5400+30:1800+30"]

1. e4 e6 2. d4 b6 3. Nc3 Bb7 4. Nf3 g6 5. Bf4 d6 6. Bc4 Bg7 7. O-O Ne7 8. Re1 O-O 9. Qd2 Nd7 10. Bh6 a6 11. h4 b5 12. Bb3 Nb6 13. h5 Nc4 14. Bxc4 bxc4 15. Bxg7 Kxg7 16. h6+ Kh8 17. Qe3 Ng8 18. d5 e5 19. a4 Bc8 20. a5 Bd7 21. Ra3 f5 22. Nd2 f4 23. Qe2 Nxh6 24. Qxc4 Ng4 25. Nf3 g5 26. Rb3 Nh6 27. Rb7 g4 28. Nd2 g3 29. f3 Qh4 30. Qxc7 Qh2+ 31. Kf1 Qh1+ 32. Ke2 Qxg2+ 33. Kd1 Rad8 34. Qxd6 Nf7 35. Qf6+ Kg8 36. Qxa6 Bc8 37. b3 Bxb7 38. Qxb7 Ng5 39. Re2 Qh3 40. Re1 Qc8 41. Qe7 Nf7 42. Ne2 Rd7 43. Qh4 Rd6 44. Qh3 Qxh3 45. Nc4 Ra6 0-1

[Event "Netanya Open 2019"]
[Site "Netanya"]
[Date "2019.06.30"]
[Round "7.66"]
[White "Mendler, Omer"]
[Black "Neeman, Ori"]
[Result "1-0"]
[WhiteElo "1231"]
[BlackElo "1285"]
[PlyCount "61"]
[EventDate "2019.06.23"]
[EventType "swiss"]
[EventRounds "9"]
[EventCountry "ISR"]
[TimeControl "40/5400+30:1800+30"]

1. e4 e5 2. Nf3 Nc6 3. Bc4 Nf6 4. d3 Bc5 5. c3 d6 6. b4 Bb6 7. a4 a6 8. a5 Ba7 9. Bg5 h6 10. Bh4 Qe7 11. Nbd2 Be6 12. Qb3 Rf8 13. b5 Bxc4 14. Nxc4 axb5 15. Qxb5 Bb6 16. O-O g5 17. Bg3 g4 18. Nh4 Bxf2+ 19. Rxf2 Ra7 20. Nf5 Qd7 21. Ng7+ Ke7 22. Bh4 Rg8 23. Bxf6+ Kf8 24. Nf5 Rg6 25. Bh4 h5 26. Raf1 g3 27. hxg3 Qe6 28. a6 Nd8 29. Bxd8 bxa6 30. Qb8 f6 31. Be7+ 1-0

[Event "Netanya Open 2019"]
[Site "Netanya"]
[Date "2019.06.30"]
[Round "7.67"]
[White "Sivan, Guy"]
[Black "Friedland, Benzi"]
[Result "1-0"]
[WhiteElo "1246"]
[BlackElo "1189"]
[PlyCount "51"]
[EventDate "2019.06.23"]
[EventType "swiss"]
[EventRounds "9"]
[EventCountry "ISR"]
[TimeControl "40/5400+30:1800+30"]

1. e4 d5 2. exd5 Qxd5 3. Nc3 Qa5 4. d4 Nf6 5. Bd2 c6 6. Bc4 Bf5 7. Nd5 Qd8 8. Nxf6+ gxf6 9. Nf3 h6 10. O-O e6 11. Re1 Nd7 12. Nh4 Bh7 13. Qh5 Bg8 14. Rxe6+ Be7 15. Rae1 Kf8 16. Bxh6+ Ke8 17. Rxe7+ Qxe7 18. Rxe7+ Kxe7 19. Bf8+ Nxf8 20. Qxh8 Ne6 21. Nf5+ Kd7 22. Qxf6 Kc7 23. Qe7+ Kb6 24. Nd6 Rb8 25. Ne8 Rc8 26. Qb4# 1-0

[Event "Netanya Open 2019"]
[Site "Netanya"]
[Date "2019.06.30"]
[Round "7.69"]
[White "Havakuk, Elad"]
[Black "Marques, Don"]
[Result "0-1"]
[WhiteElo "1350"]
[BlackElo "1179"]
[PlyCount "130"]
[EventDate "2019.06.23"]
[EventType "swiss"]
[EventRounds "9"]
[EventCountry "ISR"]
[TimeControl "40/5400+30:1800+30"]

1. e4 c5 2. d4 cxd4 3. c3 dxc3 4. Nxc3 e6 5. Bc4 b6 6. a4 Bc5 7. Nf3 Bb7 8. O-O Ne7 9. Bf4 O-O 10. Rb1 Bb4 11. Re1 d5 12. exd5 exd5 13. Bb3 Ng6 14. Bg5 f6 15. Re4 Bxc3 16. bxc3 Kh8 17. Rd4 fxg5 18. Bxd5 Bxd5 19. Nxg5 Qxg5 20. Rxd5 Ne5 21. Rbb5 Nbc6 22. Rd6 Qe7 23. Rbd5 Rad8 24. f4 Rxd6 25. Rxd6 Rd8 26. fxe5 Rxd6 27. exd6 Qe3+ 28. Kf1 Qe6 29. d7 Nd8 30. h3 h6 31. Qd4 Qf7+ 32. Kg1 Kg8 33. a5 Kh7 34. Qe4+ Qg6 35. Qe8 Nc6 36. axb6 Qb1+ 37. Kf2 Qxb6+ 38. Kf3 Qc7 39. Qe4+ g6 40. Qe8 Ne5+ 41. Qxe5 Qxe5 42. d8=Q Qxc3+ 43. Kf2 Qg7 44. Kf3 a6 45. Qa8 Qf6+ 46. Kg3 h5 47. Qb7+ Kh6 48. Kh2 a5 49. Qa8 Qf4+ 50. Kg1 a4 51. Qh8+ Kg5 52. Qd8+ Kf5 53. Qd5+ Kf6 54. Qc6+ Kg7 55. Qb7+ Kh6 56. Qa8 Qe3+ 57. Kf1 a3 58. Qh8+ Kg5 59. Qd8+ Kf4 60. Qf6+ Kg3 61. Qxg6+ Kh2 62. Qxh5 Qg1+ 63. Ke2 Qxg2+ 64. Kd1 a2 65. Qe5+ Kh1 0-1

[Event "Netanya Open 2019"]
[Site "Netanya"]
[Date "2019.07.01"]
[Round "8.1"]
[White "Zubov, Alexander"]
[Black "Antipov, Mikhail Al."]
[Result "1/2-1/2"]
[ECO "D87"]
[WhiteElo "2597"]
[BlackElo "2582"]
[Annotator "ChessBase"]
[PlyCount "36"]
[EventDate "2019.06.23"]
[EventType "swiss"]
[EventCountry "ISR"]
[SourceTitle "playchess.com"]
[Source "ChessBase"]
[SourceQuality "1"]
[TimeControl "40/5400+30:1800+30"]

1. d4 {[%emt 0:00:00]} Nf6 {[%emt 0:00:00]} 2. c4 {[%emt 0:00:00]} g6 {[%emt 0:00:00]} 3. Nc3 {[%emt 0:01:34]} d5 {[%emt 0:00:00]} 4. cxd5 {[%emt 0:02:06]} Nxd5 {[%emt 0:00:00]} 5. e4 {[%emt 0:00:22]} Nxc3 {[%emt 0:00:01]} 6. bxc3 {[%emt 0:00:01]} Bg7 {[%emt 0:00:14]} 7. Bc4 {[%emt 0:00:39]} c5 {[%emt 0:01:46]} 8. Ne2 {[%emt 0:00:06]} O-O {[%emt 0:02:14]} 9. O-O {[%emt 0:00:08]} Nc6 {[%emt 0:00:29]} 10. Be3 {[%emt 0:00:07]} b6 {[%emt 0:00:22]} 11. Qd2 {[%emt 0:05:22]} Bb7 {[%emt 0:01:46]} 12. Rfd1 {[%emt 0:03:04]} cxd4 {[%emt 0:01:06]} 13. cxd4 {[%emt 0:00:05]} Rc8 {[%emt 0:00:10]} 14. Rac1 {[%emt 0:00:25]} e6 {[%emt 0:00:31]} 15. Bg5 {[%emt 0:06:39]} Qd7 {[%emt 0:00:31]} 16. h4 {[%emt 0:02:16]} Na5 {[%emt 0:00:18]} 17. Bd3 {[%emt 0:00:06]} Rxc1 {[%emt 0:00:39]} 18. Rxc1 {[%emt 0:01:50]} Rc8 {[%emt 0:01:52]} 1/2-1/2

[Event "Netanya Open 2019"]
[Site "Netanya"]
[Date "2019.07.01"]
[Round "8.2"]
[White "Dvoirys, Semen I."]
[Black "Moiseenko, Alexander"]
[Result "1/2-1/2"]
[ECO "B33"]
[WhiteElo "2502"]
[BlackElo "2642"]
[Annotator "ChessBase"]
[PlyCount "67"]
[EventDate "2019.06.23"]
[EventType "swiss"]
[EventCountry "ISR"]
[SourceTitle "playchess.com"]
[Source "ChessBase"]
[SourceQuality "1"]
[TimeControl "40/5400+30:1800+30"]

1. e4 {[%emt 0:00:00]} c5 {[%emt 0:00:00]} 2. Nf3 {[%emt 0:00:00]} Nc6 {[%emt 0:00:00]} 3. d4 {[%emt 0:00:00]} cxd4 {[%emt 0:00:00]} 4. Nxd4 {[%emt 0:00:00]} Nf6 {[%emt 0:00:00]} 5. Nc3 {[%emt 0:00:00]} e5 {[%emt 0:00:00]} 6. Ndb5 {[%emt 0:00:04]} d6 {[%emt 0:00:04]} 7. Bg5 {[%emt 0:00:09]} a6 {[%emt 0:00:03]} 8. Na3 {[%emt 0:00:05]} b5 {[%emt 0:00:19]} 9. Nd5 {[%emt 0:00:45]} Be7 {[%emt 0:00:13]} 10. Bxf6 {[%emt 0:00:06]} Bxf6 {[%emt 0:00:04]} 11. c3 {[%emt 0:00:07]} Bg5 {[%emt 0:05:53]} 12. Nc2 {[%emt 0:00:08]} Ne7 {[%emt 0:02:21]} 13. a4 {[%emt 0:02:39]} bxa4 {[%emt 0:02:18]} 14. Rxa4 {[%emt 0:00:15]} Nxd5 {[%emt 0:01:44]} 15. Qxd5 {[%emt 0:00:39]} Be6 {[%emt 0:00:31]} 16. Qd3 {[%emt 0:16:30]} O-O {[%emt 0:02:59]} 17. Be2 {[%emt 0:02:15]} a5 {[%emt 0:20:59]} 18. O-O {[%emt 0:01:22]} Bb3 {[%emt 0:00:53]} 19. Raa1 {[%emt 0:10:54]} Qb6 {[%emt 0:01:51]} 20. Na3 {[%emt 0:00:14]} a4 {[%emt 0:09:13]} 21. Nc4 {[%emt 0:05:16]} Qb5 {[%emt 0:06:43]} 22. Rfe1 {[%emt 0:06:26]} Rab8 {[%emt 0:06:03]} 23. Ne3 {[%emt 0:01:07]} Qc5 {[%emt 0:01:08]} 24. Bd1 {[%emt 0:10:56]} Bxe3 {[%emt 0:06:36]} 25. Rxe3 {[%emt 0:02:32]} Bxd1 {[%emt 0:02:32]} 26. Qxd1 {[%emt 0:00:39]} Rxb2 {[%emt 0:00:10]} 27. Qxa4 {[%emt 0:02:12]} f5 {[%emt 0:05:21]} 28. exf5 {[%emt 0:01:10]} Rxf5 {[%emt 0:01:45]} 29. Qe8+ {[%emt 0:00:14]} Rf8 {[%emt 0:00:04]} 30. Qe6+ {[%emt 0:00:06]} Kh8 {[%emt 0:00:10]} 31. Qf5 {[%emt 0:00:25]} Kg8 {[%emt 0:09:04]} 32. Qe6+ {[%emt 0:00:03]} Kh8 {[%emt 0:00:03]} 33. Qf5 {[%emt 0:00:07]} Kg8 {[%emt 0:03:09]} 34. Qe6+ {[%emt 0:01:22]} 1/2-1/2

[Event "Netanya Open 2019"]
[Site "Netanya"]
[Date "2019.07.01"]
[Round "8.3"]
[White "Efimenko, Zahar"]
[Black "Gorodetzky, David"]
[Result "1/2-1/2"]
[ECO "C02"]
[WhiteElo "2632"]
[BlackElo "2461"]
[Annotator "ChessBase"]
[PlyCount "111"]
[EventDate "2019.06.23"]
[EventType "swiss"]
[EventCountry "ISR"]
[SourceTitle "playchess.com"]
[Source "ChessBase"]
[SourceQuality "1"]
[TimeControl "40/5400+30:1800+30"]

1. e4 {[%emt 0:00:11]} e6 {[%emt 0:00:00]} 2. d4 {[%emt 0:00:10]} d5 {[%emt 0:00:00]} 3. e5 {[%emt 0:00:08]} c5 {[%emt 0:01:03]} 4. c3 {[%emt 0:00:18]} Nc6 {[%emt 0:00:05]} 5. Nf3 {[%emt 0:00:08]} Bd7 {[%emt 0:01:02]} 6. Be2 {[%emt 0:00:11]} Nge7 {[%emt 0:01:40]} 7. O-O {[%emt 0:00:09]} Ng6 {[%emt 0:04:50]} 8. g3 {[%emt 0:01:32]} Be7 {[%emt 0:03:17]} 9. h4 {[%emt 0:04:16]} cxd4 {[%emt 0:00:10]} 10. cxd4 {[%emt 0:00:25]} O-O {[%emt 0:00:07]} 11. h5 {[%emt 0:01:47]} Nh8 {[%emt 0:00:08]} 12. Nbd2 {[%emt 0:00:07]} f6 {[%emt 0:08:03]} 13. exf6 {[%emt 0:00:38]} Bxf6 {[%emt 0:00:10]} 14. Nb3 {[%emt 0:00:13]} Nf7 {[%emt 0:06:34]} 15. Bf4 {[%emt 0:02:30]} Nh6 {[%emt 0:12:33]} 16. Bxh6 {[%emt 0:09:14]} gxh6 {[%emt 0:00:02]} 17. Nc5 {[%emt 0:00:09]} Bc8 {[%emt 0:04:50]} 18. Bb5 {[%emt 0:04:45]} Bg7 {[%emt 0:15:47]} 19. Bxc6 {[%emt 0:10:09]} bxc6 {[%emt 0:00:03]} 20. Ne5 {[%emt 0:07:25]} Bxe5 {[%emt 0:03:00]} 21. dxe5 {[%emt 0:00:20]} Qg5 {[%emt 0:00:23]} 22. Qe2 {[%emt 0:14:11]} Rb8 {[%emt 0:06:21]} 23. a3 {[%emt 0:04:29]} Rf5 {[%emt 0:03:17]} 24. Rfe1 {[%emt 0:02:03]} Qxh5 {[%emt 0:01:07]} 25. Qxh5 {[%emt 0:00:28]} Rxh5 {[%emt 0:00:02]} 26. b4 {[%emt 0:01:19]} Kf7 {[%emt 0:03:10]} 27. Rac1 {[%emt 0:04:21]} Rg5 {[%emt 0:03:40]} 28. Kg2 {[%emt 0:03:00]} Ra8 {[%emt 0:09:34]} 29. Rb1 {[%emt 0:14:21]} a5 {[%emt 0:03:41]} 30. b5 {[%emt 0:01:05]} cxb5 {[%emt 0:00:23]} 31. Rxb5 {[%emt 0:00:04]} Ra7 {[%emt 0:00:18]} 32. Nb3 {[%emt 0:03:11]} Rg4 {[%emt 0:01:53]} 33. Rc1 {[%emt 0:02:39]} Rc4 {[%emt 0:02:57]} 34. Rc5 {[%emt 0:01:35]} Rxc1 {[%emt 0:00:36]} 35. Rxc1 {[%emt 0:01:07]} Bd7 {[%emt 0:00:42]} 36. Nd4 {[%emt 0:00:29]} h5 {[%emt 0:01:03]} 37. Kf3 {[%emt 0:00:52]} a4 {[%emt 0:00:48]} 38. Ke3 {[%emt 0:01:06]} Rb7 {[%emt 0:01:14]} 39. f4 {[%emt 0:00:21]} Ke7 {[%emt 0:04:57]} 40. Rh1 {[%emt 0:03:12]} Be8 {[%emt 0:00:00]} 41. g4 {[%emt 0:32:04]} Rb2 {[%emt 0:13:35]} 42. f5 {[%emt 0:00:00]} Rg2 {[%emt 0:08:49]} 43. f6+ {[%emt 0:00:00]} Kd7 {[%emt 0:02:14]} 44. gxh5 {[%emt 0:00:00]} Rg4 {[%emt 0:01:12]} 45. Nf3 {[%emt 0:00:00]} Re4+ {[%emt 0:00:40]} 46. Kd3 {[%emt 0:00:00]} h6 {[%emt 0:01:45]} 47. Rg1 {[%emt 0:00:00]} Bxh5 {[%emt 0:00:25]} 48. Rg7+ {[%emt 0:00:00]} Ke8 {[%emt 0:00:27]} 49. Re7+ {[%emt 0:00:00]} Kf8 {[%emt 0:00:13]} 50. Nd4 {[%emt 0:00:00]} Rxe5 {[%emt 0:00:51]} 51. Nxe6+ {[%emt 0:00:00]} Kg8 {[%emt 0:00:01]} 52. Kd4 {[%emt 0:00:41]} Rf5 {[%emt 0:02:56]} 53. Ng7 {[%emt 0:01:26]} Rg5 {[%emt 0:00:01]} 54. Ne6 {[%emt 0:02:06]} Rf5 {[%emt 0:00:21]} 55. Ng7 {[%emt 0:00:19]} Rg5 {[%emt 0:00:05]} 56. Ne6 {[%emt 0:00:03]} 1/2-1/2

[Event "Netanya Open 2019"]
[Site "Netanya"]
[Date "2019.07.01"]
[Round "8.4"]
[White "Svetushkin, Dmitry"]
[Black "Baron, Tal"]
[Result "0-1"]
[ECO "C54"]
[WhiteElo "2532"]
[BlackElo "2524"]
[Annotator "ChessBase"]
[PlyCount "118"]
[EventDate "2019.06.23"]
[EventType "swiss"]
[EventCountry "ISR"]
[SourceTitle "playchess.com"]
[Source "ChessBase"]
[SourceQuality "1"]
[TimeControl "40/5400+30:1800+30"]

1. e4 {[%emt 0:00:00]} e5 {[%emt 0:02:10]} 2. Bc4 {[%emt 0:00:00]} Nf6 {[%emt 0:00:15]} 3. d3 {[%emt 0:00:00]} Bc5 {[%emt 0:00:33]} 4. Nf3 {[%emt 0:00:09]} Nc6 {[%emt 0:00:30]} 5. O-O {[%emt 0:00:30]} O-O {[%emt 0:00:30]} 6. h3 {[%emt 0:00:00]} d6 {[%emt 0:00:51]} 7. c3 {[%emt 0:00:05]} h6 {[%emt 0:01:17]} 8. Re1 {[%emt 0:00:23]} Re8 {[%emt 0:00:47]} 9. b4 {[%emt 0:07:00]} Bb6 {[%emt 0:00:04]} 10. a4 {[%emt 0:00:04]} a6 {[%emt 0:00:56]} 11. Nbd2 {[%emt 0:00:14]} Be6 {[%emt 0:01:27]} 12. Bxe6 {[%emt 0:03:26]} Rxe6 {[%emt 0:00:11]} 13. Bb2 {[%emt 0:00:15]} d5 {[%emt 0:07:27]} 14. Qc2 {[%emt 1:24:54]} dxe4 {[%emt 0:14:41]} 15. dxe4 {[%emt 0:00:00]} Nh5 {[%emt 0:00:33]} 16. Nc4 {[%emt 0:00:00]} Nf4 {[%emt 0:04:57]} 17. Nxb6 {[%emt 0:00:00]} cxb6 {[%emt 0:00:06]} 18. Rad1 {[%emt 0:00:00]} Qc8 {[%emt 0:01:32]} 19. Bc1 {[%emt 0:00:00]} Nxb4 {[%emt 0:02:04]} 20. Qb1 {[%emt 0:00:00]} Nc6 {[%emt 0:04:52]} 21. Kh2 {[%emt 0:00:00]} Qc7 {[%emt 0:04:51]} 22. Nh4 {[%emt 0:00:00]} Ne7 {[%emt 0:04:44]} 23. Nf5 {[%emt 0:00:00]} Rc6 {[%emt 0:04:41]} 24. Ba3 {[%emt 0:00:00]} Nxf5 {[%emt 0:00:45]} 25. exf5 {[%emt 0:00:00]} Rxc3 {[%emt 0:04:48]} 26. Bb2 {[%emt 0:00:00]} Qc6 {[%emt 0:00:06]} 27. Qe4 {[%emt 0:00:00]} Qxe4 {[%emt 0:00:28]} 28. Rxe4 {[%emt 0:00:00]} Rd3 {[%emt 0:00:49]} 29. Rc1 {[%emt 0:00:00]} Rd7 {[%emt 0:03:57]} 30. Rc2 {[%emt 0:00:00]} Nd3 {[%emt 0:02:10]} 31. Bc1 {[%emt 0:00:00]} Rd4 {[%emt 0:03:39]} 32. Ree2 {[%emt 0:00:00]} Rxa4 {[%emt 0:00:56]} 33. Be3 {[%emt 0:00:00]} Rb4 {[%emt 0:08:48]} 34. Rc7 {[%emt 0:00:00]} b5 {[%emt 0:03:35]} 35. Rxb7 {[%emt 0:00:00]} Rb2 {[%emt 0:00:43]} 36. Rxb2 {[%emt 0:00:00]} Nxb2 {[%emt 0:00:08]} 37. g4 {[%emt 0:00:00]} Nc4 {[%emt 0:00:42]} 38. Bc5 {[%emt 0:00:00]} Rc8 {[%emt 0:00:09]} 39. Be7 {[%emt 0:00:00]} Rc6 {[%emt 0:02:53]} 40. h4 {[%emt 0:00:00]} Rb6 {[%emt 0:01:32]} 41. Rc7 {[%emt 0:30:39]} a5 {[%emt 0:34:08]} 42. Rc8+ {[%emt 0:06:58]} Kh7 {[%emt 0:00:01]} 43. Rc7 {[%emt 0:00:17]} Rb8 {[%emt 0:00:00]} 44. g5 {[%emt 0:00:00]} hxg5 {[%emt 0:00:00]} 45. hxg5 {[%emt 0:00:00]} Ra8 {[%emt 0:00:00]} 46. Rb7 {[%emt 0:00:00]} a4 {[%emt 0:00:00]} 47. Bb4 {[%emt 0:00:00]} a3 {[%emt 0:00:00]} 48. Bc3 {[%emt 0:00:00]} a2 {[%emt 0:00:00]} 49. Ba1 {[%emt 0:00:00]} Nd6 {[%emt 0:00:00]} 50. g6+ {[%emt 0:00:00]} fxg6 {[%emt 0:00:00]} 51. fxg6+ {[%emt 0:00:00]} Kh6 {[%emt 0:01:19]} 52. Rb6 {[%emt 0:00:00]} Nc4 {[%emt 0:01:42]} 53. Rxb5 {[%emt 0:00:00]} Rd8 {[%emt 0:00:24]} 54. Rb4 {[%emt 0:00:00]} Rd1 {[%emt 0:00:05]} 55. Bc3 {[%emt 0:00:21]} Na3 {[%emt 0:06:10]} 56. Bxe5 {[%emt 0:01:27]} a1=Q {[%emt 0:00:02]} 57. Bxa1 {[%emt 0:00:05]} Rxa1 {[%emt 0:00:04]} 58. Rb6 {[%emt 0:00:11]} Nc4 {[%emt 0:00:13]} 59. Re6 {[%emt 0:00:02]} Rd1 {[%emt 0:01:26]} 0-1

[Event "Netanya Open 2019"]
[Site "Netanya"]
[Date "2019.07.01"]
[Round "8.5"]
[White "Zoler, Dan"]
[Black "Korobov, Anton"]
[Result "0-1"]
[ECO "D60"]
[WhiteElo "2499"]
[BlackElo "2687"]
[Annotator "RC"]
[PlyCount "142"]
[EventDate "2019.06.23"]
[EventType "swiss"]
[EventCountry "ISR"]
[SourceTitle "playchess.com"]
[Source "ChessBase"]
[SourceQuality "1"]
[TimeControl "40/5400+30:1800+30"]

1. d4 {[%emt 0:00:00]} d5 {[%emt 0:00:00]} 2. c4 {[%emt 0:00:00]} e6 {[%emt 0:00:00]} 3. Nf3 {[%emt 0:00:47]} Nf6 {[%emt 0:00:00]} 4. Nc3 {[%emt 0:00:19]} Nbd7 {[%emt 0:00:07]} 5. Bg5 {[%emt 0:03:14]} h6 {[%emt 0:04:20]} 6. Bxf6 {[%emt 0:01:31]} Nxf6 {[%emt 0:00:09]} 7. e3 {[%emt 0:00:14]} Be7 {[%emt 0:03:07]} 8. Bd3 {[%emt 0:01:03]} dxc4 {[%emt 0:04:06]} 9. Bxc4 {[%emt 0:01:28]} O-O {[%emt 0:00:06]} 10. O-O {[%emt 0:00:48]} c5 {[%emt 0:01:48]} 11. Rc1 {[%emt 0:09:57]} a6 {[%emt 0:02:04]} 12. dxc5 {[%emt 0:03:48]} Bxc5 {[%emt 0:00:14]} 13. Qxd8 {[%emt 0:23:08]} Rxd8 {[%emt 0:00:02]} 14. Na4 {[%emt 0:01:12]} Ba7 {[%emt 0:01:22]} 15. Bb3 {[%emt 0:04:02]} Bd7 {[%emt 0:03:52]} 16. Rfd1 {[%emt 0:10:11]} Rac8 {[%emt 0:05:25]} 17. Ne5 {[%emt 0:02:12]} Be8 {[%emt 0:03:54]} 18. Rxc8 {[%emt 0:06:05]} Rxc8 {[%emt 0:01:57]} 19. Nc3 {[%emt 0:00:20]} b5 {[%emt 0:03:09]} 20. Nd3 {[%emt 0:00:27]} a5 {[%emt 0:03:47]} 21. a3 {[%emt 0:00:41]} Bb8 {[%emt 0:03:38]} 22. h3 {[%emt 0:06:25]} Kf8 {[%emt 0:03:27]} 23. Kf1 {[%emt 0:00:32]} Ke7 {[%emt 0:01:18]} 24. Ke2 {[%emt 0:02:35]} g5 {[%emt 0:03:02]} 25. Rc1 {[%emt 0:01:53]} Bd7 {[%emt 0:01:17]} 26. Na2 {[%emt 0:07:29]} Rxc1 {[%emt 0:04:53]} 27. Naxc1 {[%emt 0:00:07]} e5 {[%emt 0:01:12]} 28. Bc2 {[%emt 0:08:02]} Bc6 {[%emt 0:05:00]} 29. Ne1 {[%emt 0:00:15]} a4 {[%emt 0:05:54]} 30. Na2 {[%emt 0:01:05]} e4 {[%emt 0:00:59]} 31. Nc3 {[%emt 0:03:30]} Be5 {[%emt 0:00:02]} 32. Kd2 {[%emt 0:00:35]} Ne8 {[%emt 0:03:25]} 33. Bd1 {[%emt 0:00:32]} Nd6 {[%emt 0:00:49]} 34. Be2 {[%emt 0:00:03]} f5 {[%emt 0:00:48]} 35. Nc2 {[%emt 0:00:13]} f4 {[%emt 0:01:53]} 36. Nb4 {[%emt 0:00:39]} Bd7 {[%emt 0:01:14]} 37. Nbd5+ {[%emt 0:02:01]} Kd8 {[%emt 0:03:54]} 38. Bf1 {[%emt 0:01:01]} h5 {[%emt 0:01:12]} 39. Kc2 {[%emt 0:00:31]} h4 {[%emt 0:03:14]} 40. f3 {[%emt 0:00:14]} exf3 {[%emt 0:04:40]} 41. gxf3 {[%emt 0:03:16]} fxe3 {[%emt 0:05:26]} 42. Nxe3 {[%emt 0:00:33]} Ke7 {[%emt 0:00:57]} 43. Ncd5+ {[%emt 0:19:43]} Ke6 {[%emt 0:03:38]} 44. Nc7+ {[%emt 0:00:13]} Kf7 {[%emt 0:00:07]} 45. Ncd5 {[%emt 0:01:35]} Nf5 {[%emt 0:01:56]} 46. Nxf5 {[%emt 0:06:35]} Bxf5+ {[%emt 0:00:14]} 47. Kd2 {[%emt 0:00:24]} Bd7 {[%emt 0:03:22]} 48. Nc3 {[%emt 0:00:53]} Kf6 {[%emt 0:00:38]} 49. Ke3 {[%emt 0:00:50]} b4 {[%emt 0:01:14]} 50. Nd5+ {[%emt 0:00:21]} Kg7 {[%emt 0:00:01]} 51. Nxb4 {[%emt 0:00:15]} Bxb2 {[%emt 0:00:07]} 52. Nc2 {[%emt 0:00:32]} Kf6 {[%emt 0:00:14]} 53. Bd3 {[%emt 0:01:36]} Ke5 {[%emt 0:03:48]} 54. Kf2 {[%emt 0:00:20]} Kf4 {[%emt 0:02:24]} 55. Bg6 {[%emt 0:00:33]} Bxh3 {[%emt 0:01:27]} 56. Be8 {[%emt 0:00:04]} Bf5 {[%emt 0:00:34]} 57. Bxa4 {[%emt 0:00:07]} g4 {[%emt 0:01:11]} 58. fxg4 {[%emt 0:00:26]} Be4 {[%emt 0:00:01]} 59. Bb5 {[%emt 0:01:23]} Bxc2 {[%emt 0:01:03]} 60. Bc6 {[%emt 0:00:09]} Bxa3 {[%emt 0:00:33]} 61. Kg2 {[%emt 0:00:31]} Bd1 {[%emt 0:00:19]} 62. g5 {[%emt 0:00:44]} Kxg5 {[%emt 0:00:17]} 63. Bd7 {[%emt 0:00:42]} Bb3 {[%emt 0:00:33]} 64. Kh3 {[%emt 0:00:30]} Bc4 {[%emt 0:00:26]} 65. Kg2 {[%emt 0:00:29]} Bd5+ {[%emt 0:00:17]} 66. Kh3 {[%emt 0:00:10]} Be7 {[%emt 0:00:19]} 67. Bc8 {[%emt 0:00:40]} Kf4 {[%emt 0:00:08]} 68. Kh2 {[%emt 0:00:41]} Kf3 {[%emt 0:00:26]} 69. Bd7 {[%emt 0:00:31]} Kf2 {[%emt 0:00:21]} 70. Kh3 {[%emt 0:00:33]} Bg2+ {[%emt 0:00:07]} 71. Kg4 {[%emt 0:00:06]} h3 {[%emt 0:00:06]} 0-1

[Event "Netanya Open 2019"]
[Site "Netanya"]
[Date "2019.07.01"]
[Round "8.6"]
[White "Parligras, Mircea-Emilian"]
[Black "Bar, Roman"]
[Result "1-0"]
[ECO "E11"]
[WhiteElo "2638"]
[BlackElo "2497"]
[Annotator "ChessBase"]
[PlyCount "119"]
[EventDate "2019.06.23"]
[EventType "swiss"]
[EventCountry "ISR"]
[SourceTitle "playchess.com"]
[Source "ChessBase"]
[SourceQuality "1"]
[TimeControl "40/5400+30:1800+30"]

1. d4 {[%emt 0:00:00]} Nf6 {[%emt 0:00:00]} 2. c4 {[%emt 0:00:00]} e6 {[%emt 0:00:00]} 3. Nf3 {[%emt 0:00:00]} Bb4+ {[%emt 0:00:00]} 4. Bd2 {[%emt 0:00:00]} c5 {[%emt 0:00:08]} 5. Bxb4 {[%emt 0:01:15]} cxb4 {[%emt 0:00:06]} 6. e3 {[%emt 0:00:24]} O-O {[%emt 0:00:24]} 7. Be2 {[%emt 0:01:03]} d6 {[%emt 0:00:20]} 8. a3 {[%emt 0:02:33]} bxa3 {[%emt 0:00:17]} 9. Rxa3 {[%emt 0:02:01]} Nc6 {[%emt 0:00:36]} 10. Nc3 {[%emt 0:01:16]} e5 {[%emt 0:00:16]} 11. O-O {[%emt 0:01:03]} Bg4 {[%emt 0:00:35]} 12. h3 {[%emt 0:02:54]} Bh5 {[%emt 0:00:07]} 13. Qa4 {[%emt 0:06:24]} exd4 {[%emt 0:11:24]} 14. Nxd4 {[%emt 0:01:28]} Nxd4 {[%emt 0:03:22]} 15. Bxh5 {[%emt 0:00:58]} Nxh5 {[%emt 0:02:26]} 16. Qd1 {[%emt 0:00:46]} Qb6 {[%emt 0:30:25]} 17. Qxd4 {[%emt 0:05:09]} Qxd4 {[%emt 0:12:17]} 18. exd4 {[%emt 0:00:05]} Nf4 {[%emt 0:00:39]} 19. Re1 {[%emt 0:09:07]} h6 {[%emt 0:14:21]} 20. Re7 {[%emt 0:05:32]} d5 {[%emt 0:01:41]} 21. cxd5 {[%emt 0:10:02]} b5 {[%emt 0:03:22]} 22. Nxb5 {[%emt 0:03:43]} Nxd5 {[%emt 0:03:38]} 23. Rd7 {[%emt 0:12:46]} Nf6 {[%emt 0:01:07]} 24. Rdxa7 {[%emt 0:00:09]} Rab8 {[%emt 0:00:11]} 25. R3a5 {[%emt 0:05:32]} Rfd8 {[%emt 0:01:09]} 26. Rc7 {[%emt 0:00:55]} Nd5 {[%emt 0:01:38]} 27. Rc4 {[%emt 0:09:13]} Nf4 {[%emt 0:01:49]} 28. b4 {[%emt 0:02:26]} Ne6 {[%emt 0:02:19]} 29. Kf1 {[%emt 0:03:06]} Rd5 {[%emt 0:01:27]} 30. Na3 {[%emt 0:07:45]} Rxd4 {[%emt 0:00:37]} 31. Rxd4 {[%emt 0:00:55]} Nxd4 {[%emt 0:00:05]} 32. b5 {[%emt 0:00:25]} Rb7 {[%emt 0:02:05]} 33. f4 {[%emt 0:00:19]} g5 {[%emt 0:03:56]} 34. fxg5 {[%emt 0:00:22]} hxg5 {[%emt 0:00:05]} 35. Kf2 {[%emt 0:00:08]} Kg7 {[%emt 0:01:04]} 36. Ke3 {[%emt 0:00:14]} Ne6 {[%emt 0:00:36]} 37. Nc4 {[%emt 0:01:52]} Rc7 {[%emt 0:01:19]} 38. Kd3 {[%emt 0:01:06]} Nf4+ {[%emt 0:00:23]} 39. Kc3 {[%emt 0:00:08]} Rc5 {[%emt 0:01:40]} 40. g3 {[%emt 0:00:57]} Ne2+ {[%emt 0:01:26]} 41. Kb4 {[%emt 0:30:23]} Rd5 {[%emt 0:01:18]} 42. b6 {[%emt 0:00:00]} Rd1 {[%emt 0:00:21]} 43. Kc5 {[%emt 0:00:00]} Nd4 {[%emt 0:03:46]} 44. Ra2 {[%emt 0:00:00]} Ne6+ {[%emt 0:02:23]} 45. Kb4 {[%emt 0:00:00]} Rh1 {[%emt 0:02:06]} 46. Kb5 {[%emt 0:00:00]} Nd4+ {[%emt 0:08:03]} 47. Kc5 {[%emt 0:00:00]} Ne6+ {[%emt 0:00:12]} 48. Kd6 {[%emt 0:00:00]} Rd1+ {[%emt 0:00:41]} 49. Rd2 {[%emt 0:00:00]} Rb1 {[%emt 0:00:19]} 50. Rb2 {[%emt 0:00:00]} Rd1+ {[%emt 0:00:25]} 51. Rd2 {[%emt 0:00:00]} Rb1 {[%emt 0:00:17]} 52. Kc6 {[%emt 0:00:00]} Rc1 {[%emt 0:04:56]} 53. Kb5 {[%emt 0:00:00]} Rb1+ {[%emt 0:02:35]} 54. Nb2 {[%emt 0:00:16]} Rc1 {[%emt 0:01:44]} 55. b7 {[%emt 0:00:54]} Rc3 {[%emt 0:00:41]} 56. Rd3 {[%emt 0:01:06]} Rc2 {[%emt 0:00:20]} 57. Na4 {[%emt 0:00:52]} Rc1 {[%emt 0:01:27]} 58. Nc3 {[%emt 0:01:11]} Rc2 {[%emt 0:00:16]} 59. Kb6 {[%emt 0:00:17]} Rb2+ {[%emt 0:00:18]} 60. Nb5 {[%emt 0:00:04]} 1-0